[Event "Mistrovství Čech mládeže 2023 - HD14"]
[Site "Harrachov, Czech Republic"]
[Date "2023.10.27"]
[Round "8.9"]
[White "Stefaniv, Vladislav"]
[Black "Chon, Jeremy"]
[Result "1/2-1/2"]
[TimeControl "90m + 30s"]
[WhiteElo "1566"]
[BlackElo "1538"]

1. e4 {[%clk 01:30:58]} c5 {[%clk 01:31:00]} {[%emt 00:00:01]} 2. Nf3 {[%clk
01:31:22]} {[%emt 00:00:06]} g6 {[%clk 01:31:29]} 3. d4 {[%clk 01:31:45]}
{[%emt 00:00:08]} cxd4 {[%clk 01:31:58]} {[%emt 00:00:01]} 4. Qxd4 {[%clk
01:32:04]} {[%emt 00:00:10]} Nf6 {[%clk 01:32:26]} {[%emt 00:00:02]} 5. Nc3
{[%clk 01:32:07]} {[%emt 00:00:27]} Nc6 {[%clk 01:32:49]} {[%emt 00:00:07]} 6.
Qa4 {[%clk 01:32:30]} {[%emt 00:00:07]} d6 {[%clk 01:20:11]} {[%emt 00:13:08]}
7. e5 {[%clk 01:32:44]} {[%emt 00:00:16]} dxe5 {[%clk 01:19:49]} {[%emt
00:00:53]} 8. Nxe5 {[%clk 01:32:35]} {[%emt 00:00:38]} Bd7 {[%clk 01:17:38]}
{[%emt 00:02:42]} 9. Nxd7 {[%clk 01:32:31]} {[%emt 00:00:34]} Qxd7 {[%clk
01:16:46]} {[%emt 00:01:21]} 10. Be3 {[%clk 01:31:12]} {[%emt 00:01:48]} Bg7
{[%clk 01:14:37]} {[%emt 00:02:40]} 11. Be2 {[%clk 01:31:00]} {[%emt 00:00:42]}
O-O {[%clk 01:12:54]} {[%emt 00:02:13]} 12. O-O {[%clk 01:31:08]} {[%emt
00:00:22]} a6 {[%clk 01:08:50]} {[%emt 00:04:34]} 13. Rfd1 {[%clk 01:28:59]}
{[%emt 00:02:38]} Qe6 {[%clk 01:03:30]} {[%emt 00:05:50]} 14. Qb3 {[%clk
01:13:10]} {[%emt 00:16:20]} Qxb3 {[%clk 00:56:48]} {[%emt 00:07:13]} 15. axb3
{[%clk 01:12:40]} {[%emt 00:01:00]} Rac8 {[%clk 00:47:06]} {[%emt 00:10:12]} 16.
Bf3 {[%clk 00:59:32]} {[%emt 00:13:37]} e6 {[%clk 00:39:01]} {[%emt 00:08:36]}
17. Na4 {[%clk 00:45:46]} {[%emt 00:14:16]} Ne5 {[%clk 00:23:31]} {[%emt
00:15:59]} 18. Bxb7 {[%clk 00:41:22]} {[%emt 00:04:53]} Rxc2 {[%clk 00:22:40]}
{[%emt 00:01:21]} 19. Bxa6 {[%clk 00:28:18]} {[%emt 00:13:34]} Rb8 {[%clk
00:17:53]} {[%emt 00:05:17]} 20. Bf4 {[%clk 00:27:06]} {[%emt 00:01:43]} Nd5
{[%clk 00:17:10]} {[%emt 00:01:13]} 21. Bg3 {[%clk 00:20:04]} {[%emt 00:07:32]}
Rxb3 {[%clk 00:10:59]} {[%emt 00:06:42]} 22. Rac1 {[%clk 00:19:43]} {[%emt
00:00:50]} Rxc1 {[%clk 00:10:50]} {[%emt 00:00:39]} 23. Rxc1 {[%clk 00:20:09]}
{[%emt 00:00:03]} h5 {[%clk 00:09:45]} {[%emt 00:01:34]} 24. h4 {[%clk
00:15:06]} {[%emt 00:05:33]} Rb4 {[%clk 00:06:47]} {[%emt 00:03:29]} 25. Ra1
{[%clk 00:05:12]} {[%emt 00:10:25]} Nc4 {[%clk 00:05:49]} {[%emt 00:01:28]} 26.
Bxc4 {[%clk 00:00:42]} {[%emt 00:05:00]} Rxc4 {[%clk 00:06:14]} {[%emt
00:00:05]} 27. Nc3 {[%clk 00:00:37]} {[%emt 00:00:35]} Nxc3 {[%clk 00:05:23]}
{[%emt 00:01:22]} 28. bxc3 {[%clk 00:01:02]} {[%emt 00:00:05]} Rxc3 {[%clk
00:05:09]} {[%emt 00:00:45]} 29. Ra8+ {[%clk 00:01:17]} {[%emt 00:00:15]}
1/2-1/2

[Event "Mistrovství Čech mládeže 2023 - HD14"]
[Site "Harrachov, Czech Republic"]
[Date "2023.10.27"]
[Round "8.10"]
[White "Borecký, Andrej"]
[Black "Mikulka, Martin Michael"]
[Result "1/2-1/2"]
[TimeControl "90m + 30s"]
[WhiteElo "1341"]
[BlackElo "1826"]

1. d4 {[%clk 01:30:56]} {[%emt 00:00:03]} d5 {[%clk 01:30:51]} {[%emt
00:00:09]} 2. c4 {[%clk 01:31:19]} {[%emt 00:00:07]} e6 {[%clk 01:31:16]}
{[%emt 00:00:05]} 3. Nc3 {[%clk 01:31:43]} {[%emt 00:00:06]} Nf6 {[%clk
01:31:39]} {[%emt 00:00:07]} 4. Bg5 {[%clk 01:32:05]} {[%emt 00:00:08]} dxc4
{[%clk 01:32:01]} {[%emt 00:00:08]} 5. e3 {[%clk 01:31:13]} {[%emt 00:01:22]}
c5 {[%clk 01:32:24]} {[%emt 00:00:07]} 6. Nf3 {[%clk 01:30:23]} {[%emt
00:01:20]} cxd4 {[%clk 01:32:00]} {[%emt 00:00:54]} 7. Nxd4 {[%clk 01:30:07]}
{[%emt 00:00:46]} e5 {[%clk 01:27:40]} {[%emt 00:04:50]} 8. Nf3 {[%clk
01:27:28]} {[%emt 00:03:10]} Qxd1+ {[%clk 01:25:56]} {[%emt 00:02:14]} 9. Rxd1
{[%clk 01:27:39]} {[%emt 00:00:19]} Nc6 {[%clk 01:26:17]} {[%emt 00:00:09]} 10.
Bxc4 {[%clk 01:25:52]} {[%emt 00:02:18]} Bb4 {[%clk 01:21:31]} {[%emt
00:05:16]} 11. O-O {[%clk 01:12:25]} {[%emt 00:13:57]} Bxc3 {[%clk 01:21:22]}
{[%emt 00:00:38]} 12. bxc3 {[%clk 01:12:46]} {[%emt 00:00:09]} a6 {[%clk
01:20:27]} {[%emt 00:01:25]} 13. Bxf6 {[%clk 01:09:41]} {[%emt 00:03:36]} gxf6
{[%clk 01:20:47]} {[%emt 00:00:09]} 14. Rd6 {[%clk 01:07:38]} {[%emt 00:02:33]}
Ke7 {[%clk 01:19:03]} {[%emt 00:02:14]} 15. Rfd1 {[%clk 01:05:53]} {[%emt
00:02:16]} Rd8 {[%clk 01:18:56]} {[%emt 00:00:37]} 16. Rxd8 {[%clk 01:05:30]}
{[%emt 00:00:54]} Nxd8 {[%clk 01:19:24]} {[%emt 00:00:01]} 17. Kf1 {[%clk
01:03:33]} {[%emt 00:02:27]} Be6 {[%clk 01:16:38]} {[%emt 00:03:15]} 18. Bb3
{[%clk 00:56:40]} {[%emt 00:07:23]} Rc8 {[%clk 01:16:05]} {[%emt 00:01:03]} 19.
Bxe6 {[%clk 00:53:39]} {[%emt 00:03:31]} fxe6 {[%clk 01:12:27]} {[%emt
00:04:08]} 20. Rc1 {[%clk 00:48:01]} {[%emt 00:06:08]} Nf7 {[%clk 01:09:40]}
{[%emt 00:03:17]} 21. Ke2 {[%clk 00:44:42]} {[%emt 00:03:50]} Nd6 {[%clk
01:09:03]} {[%emt 00:01:06]} 22. Nd2 {[%clk 00:44:04]} {[%emt 00:01:08]} b5
{[%clk 01:00:44]} {[%emt 00:08:48]} 23. Kd3 {[%clk 00:40:25]} {[%emt 00:04:09]}
Nc4 {[%clk 00:54:27]} {[%emt 00:06:48]} 24. Nxc4 {[%clk 00:38:43]} {[%emt
00:02:11]} Rxc4 {[%clk 00:53:30]} {[%emt 00:01:27]} 25. f3 {[%clk 00:37:28]}
{[%emt 00:01:45]} h5 {[%clk 00:49:22]} {[%emt 00:04:37]} 26. g3 {[%clk
00:35:24]} {[%emt 00:02:35]} Rc8 {[%clk 00:45:30]} {[%emt 00:04:22]} 27. e4
{[%clk 00:30:30]} {[%emt 00:05:24]} f5 {[%clk 00:43:38]} {[%emt 00:02:22]} 28.
Ke3 {[%clk 00:28:26]} {[%emt 00:02:34]} Kf6 {[%clk 00:41:49]} {[%emt 00:02:19]}
29. Rc2 {[%clk 00:22:31]} {[%emt 00:06:26]} Rg8 {[%clk 00:38:47]} {[%emt
00:03:32]} 30. c4 {[%clk 00:21:08]} {[%emt 00:01:53]} bxc4 {[%clk 00:31:24]}
{[%emt 00:07:53]} 31. Rxc4 {[%clk 00:21:08]} {[%emt 00:00:30]} h4 {[%clk
00:28:24]} {[%emt 00:03:29]} 32. exf5 {[%clk 00:19:16]} {[%emt 00:02:21]} hxg3
{[%clk 00:28:10]} {[%emt 00:00:46]} 33. hxg3 {[%clk 00:19:38]} {[%emt
00:00:08]} exf5 {[%clk 00:23:03]} {[%emt 00:05:37]} 34. Rc6+ {[%clk 00:18:56]}
{[%emt 00:01:12]} Kg5 {[%clk 00:23:27]} {[%emt 00:00:05]} 35. Rxa6 {[%clk
00:18:20]} {[%emt 00:01:06]} f4+ {[%clk 00:23:19]} {[%emt 00:00:37]} 36. gxf4+
{[%clk 00:18:41]} {[%emt 00:00:10]} exf4+ {[%clk 00:23:43]} {[%emt 00:00:06]}
37. Ke4 {[%clk 00:18:16]} {[%emt 00:00:55]} 1/2-1/2

[Event "Mistrovství Čech mládeže 2023 - HD14"]
[Site "Harrachov, Czech Republic"]
[Date "2023.10.27"]
[Round "8.11"]
[White "Seidl, Václav"]
[Black "Krautschneider, Daniel Jan"]
[Result "0-1"]
[TimeControl "90m + 30s"]
[WhiteElo "1478"]
[BlackElo "1669"]

1. e4 {[%clk 01:30:57]} {[%emt 00:00:02]} c5 {[%clk 01:30:56]} {[%emt
00:00:05]} 2. Nf3 {[%clk 01:31:22]} {[%emt 00:00:04]} d6 {[%clk 01:31:23]}
{[%emt 00:00:04]} 3. d4 {[%clk 01:31:46]} {[%emt 00:00:05]} cxd4 {[%clk
01:31:49]} {[%emt 00:00:04]} 4. Nxd4 {[%clk 01:32:11]} {[%emt 00:00:05]} Nf6
{[%clk 01:32:13]} {[%emt 00:00:06]} 5. Nc3 {[%clk 01:32:35]} {[%emt 00:00:05]}
Nc6 {[%clk 01:32:39]} {[%emt 00:00:04]} 6. Bg5 {[%clk 01:32:33]} {[%emt
00:00:32]} e6 {[%clk 01:26:07]} {[%emt 00:07:01]} 7. Qd2 {[%clk 01:31:03]}
{[%emt 00:02:00]} a6 {[%clk 01:26:12]} {[%emt 00:00:25]} 8. O-O-O {[%clk
01:29:30]} {[%emt 00:02:02]} Be7 {[%clk 01:25:30]} {[%emt 00:01:13]} 9. f4
{[%clk 01:28:12]} {[%emt 00:01:48]} Bd7 {[%clk 01:24:17]} {[%emt 00:01:43]} 10.
Be2 {[%clk 01:26:51]} {[%emt 00:01:50]} Qc7 {[%clk 01:22:09]} {[%emt 00:02:39]}
11. Bf3 {[%clk 01:23:54]} {[%emt 00:03:27]} Nxd4 {[%clk 01:17:58]} {[%emt
00:04:42]} 12. Qxd4 {[%clk 01:23:46]} {[%emt 00:00:37]} Bc6 {[%clk 01:18:00]}
{[%emt 00:00:29]} 13. Bxf6 {[%clk 01:22:00]} {[%emt 00:02:16]} gxf6 {[%clk
01:18:10]} {[%emt 00:00:20]} 14. Rhe1 {[%clk 01:11:00]} {[%emt 00:11:27]} O-O-O
{[%clk 01:14:22]} {[%emt 00:04:20]} 15. Bh5 {[%clk 01:06:27]} {[%emt 00:05:02]}
Rhf8 {[%clk 01:10:55]} {[%emt 00:03:57]} 16. Qc4 {[%clk 01:00:31]} {[%emt
00:06:23]} b5 {[%clk 01:00:04]} {[%emt 00:11:26]} 17. Qf1 {[%clk 00:59:43]}
{[%emt 00:01:16]} Kb8 {[%clk 00:58:22]} {[%emt 00:02:14]} 18. a3 {[%clk
00:58:41]} {[%emt 00:01:32]} Bb7 {[%clk 00:58:02]} {[%emt 00:00:51]} 19. Rd3
{[%clk 00:51:23]} {[%emt 00:07:46]} Rc8 {[%clk 00:55:12]} {[%emt 00:03:22]} 20.
Qf2 {[%clk 00:50:09]} {[%emt 00:01:42]} Qa5 {[%clk 00:54:30]} {[%emt 00:01:14]}
21. Na2 {[%clk 00:47:19]} {[%emt 00:03:18]} Rc4 {[%clk 00:50:47]} {[%emt
00:04:13]} 22. Bf3 {[%clk 00:39:19]} {[%emt 00:08:28]} Rfc8 {[%clk 00:48:39]}
{[%emt 00:02:40]} 23. Re2 {[%clk 00:35:56]} {[%emt 00:03:50]} b4 {[%clk
00:14:43]} {[%emt 00:34:30]} 24. Kb1 {[%clk 00:28:29]} {[%emt 00:07:57]} bxa3
{[%clk 00:09:02]} {[%emt 00:06:11]} 25. Rxa3 {[%clk 00:27:42]} {[%emt
00:01:17]} Qc7 {[%clk 00:08:50]} {[%emt 00:00:42]} 26. Rc3 {[%clk 00:26:08]}
{[%emt 00:02:02]} Rxc3 {[%clk 00:01:35]} {[%emt 00:07:46]} 27. Nxc3 {[%clk
00:26:24]} {[%emt 00:00:15]} Qa5 {[%clk 00:01:55]} {[%emt 00:00:10]} 28. Qh4
{[%clk 00:21:10]} {[%emt 00:05:42]} Qb6 {[%clk 00:01:19]} {[%emt 00:01:09]} 29.
Na2 {[%clk 00:18:25]} {[%emt 00:03:14]} Rh8 {[%clk 00:00:50]} {[%emt 00:00:59]}
30. Qh5 {[%clk 00:16:34]} {[%emt 00:02:18]} Bd8 {[%clk 00:00:33]} {[%emt
00:00:51]} 31. Qxf7 {[%clk 00:15:13]} {[%emt 00:01:51]} Qg1+ {[%clk 00:01:00]}
{[%emt 00:00:03]} 32. Nc1 {[%clk 00:15:25]} {[%emt 00:00:17]} Qxh2 {[%clk
00:01:28]} {[%emt 00:00:03]} 33. Qg7 {[%clk 00:13:32]} {[%emt 00:02:21]} Re8
{[%clk 00:01:48]} {[%emt 00:00:11]} 34. g3 {[%clk 00:13:20]} {[%emt 00:00:42]}
Qh3 {[%clk 00:02:08]} {[%emt 00:00:09]} 35. Re1 {[%clk 00:11:59]} {[%emt
00:01:50]} Qh2 {[%clk 00:02:31]} {[%emt 00:00:08]} 36. Nd3 {[%clk 00:08:58]}
{[%emt 00:03:31]} f5 {[%clk 00:02:28]} {[%emt 00:00:34]} 37. Kc1 {[%clk
00:08:34]} {[%emt 00:00:53]} Ba5 {[%clk 00:02:10]} {[%emt 00:00:48]} 38. c3
{[%clk 00:07:40]} {[%emt 00:01:24]} Bb6 {[%clk 00:02:18]} {[%emt 00:00:22]} 39.
Kd1 {[%clk 00:03:00]} {[%emt 00:05:10]} Bf2 {[%clk 00:02:10]} {[%emt 00:00:39]}
40. Re2 {[%clk 00:00:57]} {[%emt 00:02:32]} Qxg3 {[%clk 00:01:48]} {[%emt
00:00:53]} 41. Qd7 {[%clk 00:01:12]} {[%emt 00:00:14]} Rg8 {[%clk 00:01:20]}
{[%emt 00:00:59]} 42. Rxf2 {[%clk 00:01:14]} {[%emt 00:00:28]} fxe4 {[%clk
00:01:40]} {[%emt 00:00:10]} 43. Qxd6+ {[%clk 00:00:36]} {[%emt 00:01:09]} Ka8
{[%clk 00:02:01]} {[%emt 00:00:09]} 44. Qe7 {[%clk 00:00:35]} {[%emt 00:00:29]}
exf3 {[%clk 00:02:15]} {[%emt 00:00:18]} 45. Qxe6 {[%clk 00:00:40]} {[%emt
00:00:23]} Rd8 {[%clk 00:02:29]} {[%emt 00:00:17]} 46. Kc2 {[%clk 00:00:32]}
{[%emt 00:00:38]} Rxd3 {[%clk 00:02:28]} {[%emt 00:00:31]} 47. Kxd3 {[%clk
00:00:31]} {[%emt 00:00:31]} Qxf2 {[%clk 00:02:46]} {[%emt 00:00:12]} 48. Qg8+
{[%clk 00:00:38]} {[%emt 00:00:21]} Ka7 {[%clk 00:03:13]} {[%emt 00:00:05]} 49.
Kc4 {[%clk 00:00:57]} {[%emt 00:00:09]} Qxb2 {[%clk 00:03:19]} {[%emt
00:00:26]} 50. Qg1+ {[%clk 00:01:10]} {[%emt 00:00:16]} Qb6 {[%clk 00:03:43]}
{[%emt 00:00:06]} 51. Qg3 {[%clk 00:00:34]} {[%emt 00:01:06]} f2 {[%clk
00:04:03]} {[%emt 00:00:11]} 0-1

[Event "Mistrovství Čech mládeže 2023 - HD14"]
[Site "Harrachov, Czech Republic"]
[Date "2023.10.27"]
[Round "8.13"]
[White "Pásek, Josef"]
[Black "Hrdlička, Jan"]
[Result "1-0"]
[TimeControl "90m + 30s"]
[WhiteElo "1555"]
[BlackElo "1418"]

1. d4 {[%clk 01:30:57]} {[%emt 00:00:02]} d5 {[%clk 01:30:40]} {[%emt
00:00:20]} 2. Nf3 {[%clk 01:31:09]} {[%emt 00:00:18]} Nf6 {[%clk 01:30:38]}
{[%emt 00:00:32]} 3. g3 {[%clk 01:31:24]} {[%emt 00:00:16]} c5 {[%clk
01:30:52]} {[%emt 00:00:16]} 4. c4 {[%clk 01:31:26]} {[%emt 00:00:28]} dxc4
{[%clk 01:30:55]} {[%emt 00:00:27]} 5. Qa4+ {[%clk 01:30:12]} {[%emt 00:01:43]}
Qd7 {[%clk 01:30:06]} {[%emt 00:01:19]} 6. Qxc4 {[%clk 01:22:42]} {[%emt
00:08:00]} cxd4 {[%clk 01:28:59]} {[%emt 00:01:37]} 7. Nxd4 {[%clk 01:05:14]}
{[%emt 00:17:59]} e6 {[%clk 01:24:16]} {[%emt 00:05:13]} 8. Nc3 {[%clk
00:59:21]} {[%emt 00:06:20]} Be7 {[%clk 01:23:16]} {[%emt 00:01:32]} 9. Bg2
{[%clk 00:59:08]} {[%emt 00:00:44]} O-O {[%clk 01:23:05]} {[%emt 00:00:40]} 10.
O-O {[%clk 00:57:39]} {[%emt 00:01:59]} Rd8 {[%clk 01:20:59]} {[%emt 00:02:37]}
11. Rd1 {[%clk 00:51:22]} {[%emt 00:06:47]} e5 {[%clk 01:11:06]} {[%emt
00:10:24]} 12. Nf3 {[%clk 00:45:58]} {[%emt 00:05:53]} Qc6 {[%clk 01:04:02]}
{[%emt 00:07:34]} 13. Rxd8+ {[%clk 00:45:50]} {[%emt 00:00:38]} Bxd8 {[%clk
01:04:17]} {[%emt 00:00:15]} 14. Nxe5 {[%clk 00:44:15]} {[%emt 00:02:05]} Qxc4
{[%clk 01:04:07]} {[%emt 00:00:40]} 15. Nxc4 {[%clk 00:44:38]} {[%emt
00:00:07]} Nc6 {[%clk 01:03:51]} {[%emt 00:00:46]} 16. Nd6 {[%clk 00:43:51]}
{[%emt 00:01:17]} Be7 {[%clk 01:03:05]} {[%emt 00:01:17]} 17. Nxc8 {[%clk
00:43:22]} {[%emt 00:00:59]} Rxc8 {[%clk 01:03:26]} {[%emt 00:00:09]} 18. Be3
{[%clk 00:42:56]} {[%emt 00:00:55]} a6 {[%clk 01:03:16]} {[%emt 00:00:40]} 19.
Rd1 {[%clk 00:41:27]} {[%emt 00:01:58]} h6 {[%clk 01:00:47]} {[%emt 00:02:59]}
20. Bb6 {[%clk 00:32:30]} {[%emt 00:09:28]} Kh7 {[%clk 00:52:07]} {[%emt
00:09:10]} 21. f4 {[%clk 00:20:52]} {[%emt 00:12:08]} Nd8 {[%clk 00:41:27]}
{[%emt 00:11:10]} 22. e4 {[%clk 00:15:27]} {[%emt 00:05:55]} Kg8 {[%clk
00:27:52]} {[%emt 00:14:05]} 23. e5 {[%clk 00:13:16]} {[%emt 00:02:42]} Ne8
{[%clk 00:27:37]} {[%emt 00:00:45]} 24. Rd7 {[%clk 00:11:44]} {[%emt 00:02:02]}
Kf8 {[%clk 00:27:32]} {[%emt 00:00:35]} 25. Nd5 {[%clk 00:10:01]} {[%emt
00:02:14]} Rc1+ {[%clk 00:26:34]} {[%emt 00:01:28]} 26. Bf1 {[%clk 00:09:45]}
{[%emt 00:00:46]} Nc6 {[%clk 00:25:41]} {[%emt 00:01:22]} 27. Nxe7 {[%clk
00:10:06]} {[%emt 00:00:09]} Nxe7 {[%clk 00:25:54]} {[%emt 00:00:17]} 28. b4
{[%clk 00:09:21]} {[%emt 00:01:15]} Nc8 {[%clk 00:22:58]} {[%emt 00:03:25]} 29.
Bc5+ {[%clk 00:09:22]} {[%emt 00:00:30]} 1-0

[Event "Mistrovství Čech mládeže 2023 - HD14"]
[Site "Harrachov, Czech Republic"]
[Date "2023.10.27"]
[Round "8.14"]
[White "Stibor, Ondřej"]
[Black "Kammová, Kateřina"]
[Result "0-1"]
[TimeControl "90m + 30s"]
[WhiteElo "1170"]
[BlackElo "1543"]

1. e4 {[%clk 01:30:58]} {[%emt 00:00:01]} e6 {[%clk 01:30:46]} {[%emt
00:00:15]} 2. d4 {[%clk 01:31:22]} {[%emt 00:00:06]} d5 {[%clk 01:31:09]}
{[%emt 00:00:07]} 3. exd5 {[%clk 01:31:45]} {[%emt 00:00:08]} exd5 {[%clk
01:31:33]} {[%emt 00:00:05]} 4. Bd3 {[%clk 01:32:06]} {[%emt 00:00:08]} Bd6
{[%clk 01:31:13]} {[%emt 00:00:50]} 5. Be3 {[%clk 01:31:43]} {[%emt 00:00:53]}
Nf6 {[%clk 01:31:19]} {[%emt 00:00:24]} 6. Nf3 {[%clk 01:32:04]} {[%emt
00:00:09]} O-O {[%clk 01:31:24]} {[%emt 00:00:25]} 7. O-O {[%clk 01:32:16]}
{[%emt 00:00:18]} Bg4 {[%clk 01:31:37]} {[%emt 00:00:16]} 8. Nbd2 {[%clk
01:32:35]} {[%emt 00:00:12]} c6 {[%clk 01:31:53]} {[%emt 00:00:14]} 9. c3
{[%clk 01:32:53]} {[%emt 00:00:13]} Qc7 {[%clk 01:32:00]} {[%emt 00:00:22]} 10.
Qc2 {[%clk 01:33:17]} {[%emt 00:00:06]} Nbd7 {[%clk 01:32:10]} {[%emt
00:00:20]} 11. Rfe1 {[%clk 01:33:36]} {[%emt 00:00:11]} Rfe8 {[%clk 01:31:59]}
{[%emt 00:00:41]} 12. h3 {[%clk 01:26:01]} {[%emt 00:08:06]} Bh5 {[%clk
01:31:58]} {[%emt 00:00:27]} 13. Bg5 {[%clk 01:21:19]} {[%emt 00:05:15]} Bg6
{[%clk 01:27:28]} {[%emt 00:05:01]} 14. Bxg6 {[%clk 01:20:09]} {[%emt
00:01:39]} hxg6 {[%clk 01:27:16]} {[%emt 00:00:40]} 15. Re3 {[%clk 01:17:19]}
{[%emt 00:03:21]} Nh7 {[%clk 01:16:34]} {[%emt 00:11:12]} 16. Rae1 {[%clk
01:13:43]} {[%emt 00:04:06]} Ndf6 {[%clk 01:14:51]} {[%emt 00:02:13]} 17. Rxe8+
{[%clk 01:08:54]} {[%emt 00:05:20]} Rxe8 {[%clk 01:12:56]} {[%emt 00:02:25]} 18.
Rxe8+ {[%clk 01:08:49]} {[%emt 00:00:35]} Nxe8 {[%clk 01:13:11]} {[%emt
00:00:14]} 19. h4 {[%clk 01:05:55]} {[%emt 00:03:24]} Nxg5 {[%clk 01:12:03]}
{[%emt 00:01:39]} 20. Nxg5 {[%clk 01:06:14]} {[%emt 00:00:11]} Qe7 {[%clk
01:11:52]} {[%emt 00:00:40]} 21. Ndf3 {[%clk 01:04:13]} {[%emt 00:02:33]} Nf6
{[%clk 01:09:57]} {[%emt 00:02:24]} 22. g3 {[%clk 00:59:06]} {[%emt 00:05:37]}
Bc7 {[%clk 00:57:42]} {[%emt 00:12:45]} 23. Kf1 {[%clk 00:56:03]} {[%emt
00:03:33]} Kf8 {[%clk 00:48:44]} {[%emt 00:09:28]} 24. Qe2 {[%clk 00:54:35]}
{[%emt 00:01:57]} Qxe2+ {[%clk 00:47:26]} {[%emt 00:01:49]} 25. Kxe2 {[%clk
00:54:55]} {[%emt 00:00:10]} Ng4 {[%clk 00:46:24]} {[%emt 00:01:31]} 26. Nd2
{[%clk 00:51:51]} {[%emt 00:03:35]} Ke7 {[%clk 00:44:37]} {[%emt 00:02:16]} 27.
f3 {[%clk 00:46:06]} {[%emt 00:06:16]} Nh6 {[%clk 00:41:19]} {[%emt 00:03:47]}
28. f4 {[%clk 00:42:26]} {[%emt 00:04:11]} f6 {[%clk 00:40:04]} {[%emt
00:01:45]} 29. Ngf3 {[%clk 00:40:23]} {[%emt 00:02:33]} b6 {[%clk 00:39:45]}
{[%emt 00:00:49]} 30. b4 {[%clk 00:39:29]} {[%emt 00:01:24]} Ke6 {[%clk
00:39:04]} {[%emt 00:01:10]} 31. Nh2 {[%emt 00:04:53]} Nf5 {[%clk 00:36:48]}
{[%emt 00:01:02]} 32. Kf3 {[%clk 00:33:02]} {[%emt 00:04:18]} Nd6 {[%clk
00:35:44]} {[%emt 00:01:35]} 33. a4 {[%clk 00:31:12]} {[%emt 00:02:20]} Nb7
{[%clk 00:35:20]} {[%emt 00:00:51]} 34. Nb3 {[%clk 00:30:26]} {[%emt 00:01:18]}
Bd6 {[%clk 00:33:13]} {[%emt 00:02:36]} 35. Nf1 {[%clk 00:27:05]} {[%emt
00:03:52]} c5 {[%clk 00:26:17]} {[%emt 00:07:26]} 36. bxc5 {[%clk 00:23:31]}
{[%emt 00:04:04]} bxc5 {[%clk 00:26:02]} {[%emt 00:00:45]} 37. Ne3 {[%clk
00:23:04]} {[%emt 00:00:57]} c4 {[%clk 00:24:04]} {[%emt 00:02:28]} 38. Nd2
{[%clk 00:22:48]} {[%emt 00:00:45]} Bc7 {[%clk 00:23:14]} {[%emt 00:01:21]} 39.
g4 {[%clk 00:22:06]} {[%emt 00:01:12]} Ba5 {[%clk 00:21:46]} {[%emt 00:01:58]}
40. Nb1 {[%clk 00:22:18]} {[%emt 00:00:18]} Nd6 {[%clk 00:21:41]} {[%emt
00:00:34]} 41. Nd1 {[%clk 00:20:25]} {[%emt 00:02:24]} Ne4 {[%clk 00:20:17]}
{[%emt 00:01:52]} 42. Ke3 {[%clk 00:20:04]} {[%emt 00:00:53]} Kd7 {[%clk
00:13:16]} {[%emt 00:07:31]} 43. Kf3 {[%clk 00:19:23]} {[%emt 00:01:11]} Kc6
{[%clk 00:11:07]} {[%emt 00:02:39]} 44. Ke2 {[%clk 00:17:35]} {[%emt 00:02:19]}
Kd6 {[%clk 00:08:00]} {[%emt 00:03:37]} 45. Ke3 {[%clk 00:17:15]} {[%emt
00:00:50]} Ke6 {[%clk 00:07:05]} {[%emt 00:01:25]} 46. Kf3 {[%clk 00:17:14]}
{[%emt 00:00:31]} Bd8 {[%clk 00:05:51]} {[%emt 00:01:44]} 47. Ne3 {[%clk
00:16:10]} {[%emt 00:01:34]} f5 {[%clk 00:05:09]} {[%emt 00:01:13]} 48. g5
{[%clk 00:16:14]} {[%emt 00:00:26]} Ba5 {[%clk 00:05:16]} {[%emt 00:00:23]} 49.
Nd1 {[%clk 00:16:15]} {[%emt 00:00:28]} Kd6 {[%clk 00:03:26]} {[%emt 00:02:20]}
50. Ke3 {[%clk 00:16:16]} {[%emt 00:00:29]} Kc6 {[%clk 00:02:43]} {[%emt
00:01:12]} 51. Kf3 {[%clk 00:16:39]} {[%emt 00:00:08]} Nd6 {[%clk 00:02:43]}
{[%emt 00:00:30]} 52. Ke2 {[%clk 00:14:54]} {[%emt 00:02:15]} Nf7 {[%clk
00:02:47]} {[%emt 00:00:26]} 53. Kd2 {[%clk 00:13:55]} {[%emt 00:01:29]} Bc7
{[%clk 00:02:44]} {[%emt 00:00:34]} 54. Ke3 {[%clk 00:14:08]} {[%emt 00:00:16]}
Nd8 {[%clk 00:02:59]} {[%emt 00:00:15]} 55. Kf3 {[%clk 00:13:35]} {[%emt
00:01:03]} Ne6 {[%clk 00:03:05]} {[%emt 00:00:23]} 56. Na3 {[%clk 00:12:09]}
{[%emt 00:01:57]} Bxf4 {[%clk 00:01:40]} {[%emt 00:01:56]} 57. Ne3 {[%clk
00:11:26]} {[%emt 00:01:12]} Bb8 {[%clk 00:00:41]} {[%emt 00:01:29]} 58. Nb5
{[%clk 00:09:13]} {[%emt 00:02:43]} a6 {[%clk 00:00:47]} {[%emt 00:00:24]} 59.
Na3 {[%clk 00:09:37]} {[%emt 00:00:05]} Nf4 {[%clk 00:01:03]} {[%emt 00:00:14]}
60. Nac2 {[%clk 00:09:23]} {[%emt 00:00:44]} a5 {[%clk 00:01:04]} {[%emt
00:00:30]} 61. Ne1 {[%clk 00:09:37]} {[%emt 00:00:16]} Ne6 {[%clk 00:00:53]}
{[%emt 00:00:41]} 62. N1g2 {[%clk 00:09:25]} {[%emt 00:00:42]} Bd6 {[%clk
00:00:53]} {[%emt 00:00:31]} 63. Nd1 {[%clk 00:08:54]} {[%emt 00:01:00]} Bb8
{[%clk 00:00:42]} {[%emt 00:00:42]} 64. Nde3 {[%clk 00:08:36]} {[%emt
00:00:48]} Kd6 {[%clk 00:00:42]} {[%emt 00:00:31]} 65. Nf4 {[%clk 00:07:20]}
{[%emt 00:01:46]} Nxf4 {[%clk 00:00:53]} {[%emt 00:00:19]} 66. Kxf4 {[%clk
00:07:32]} {[%emt 00:00:18]} Ke6+ {[%clk 00:01:16]} {[%emt 00:00:08]} 67. Kf3
{[%clk 00:07:42]} {[%emt 00:00:19]} f4 {[%clk 00:01:07]} {[%emt 00:00:39]} 68.
Ng2 {[%clk 00:05:03]} {[%emt 00:03:09]} Kf5 {[%clk 00:01:21]} {[%emt 00:00:17]}
69. Ne1 {[%clk 00:05:14]} {[%emt 00:00:18]} Bc7 {[%clk 00:01:32]} {[%emt
00:00:20]} 70. Ng2 {[%clk 00:05:22]} {[%emt 00:00:21]} Bd6 {[%clk 00:01:52]}
{[%emt 00:00:10]} 71. Ne1 {[%clk 00:04:02]} {[%emt 00:01:51]} Ba3 {[%clk
00:02:01]} {[%emt 00:00:21]} 72. Nc2 {[%clk 00:04:22]} {[%emt 00:00:10]} Bb2
{[%clk 00:02:02]} {[%emt 00:00:30]} 73. Nb4 {[%clk 00:04:10]} {[%emt 00:00:41]}
axb4 {[%clk 00:01:50]} {[%emt 00:00:42]} 0-1